bitfinex/quotes_ETHUSD_20250930
["timestamp","ask_amount","ask_price","bid_price","bid_amount"]
[1759269548614,0.24037104,4160.2,4158.7,6.29721481]
[1759269548951,0.24037104,4160.2,4158.8,0.6825]
[1759269549119,0.24037104,4160.2,4158.7,5.61471481]
[1759269549321,1.1084,4160.1,4158.8,2.806]
[1759269549515,2.40448195,4158.9,4158.8,2.806]
[1759269549718,2.40424874,4159.4,4158.8,3.4885]
[1759269549915,0.792,4159.9,4158.8,3.4885]
[1759269550104,0.792,4159.2,4158.8,3.4885]
[1759269550307,2.40418703,4159.5,4158.9,0.6825]
[1759269550536,0.792,4159.4,4159.0,0.2479]
[1759269550715,2.40401578,4159.8,4159.1,0.4346]
[1759269550907,3.19602422,4159.7,4158.4,0.2479]
[1759269551113,2.40425916,4159.3,4158.5,0.4715]
[1759269551328,2.40425916,4159.3,4158.6,5.5518]
[1759269551528,2.40433035,4159.2,4158.6,5.5518]
[1759269551936,2.40433035,4159.2,4158.7,0.7143]
[1759269552134,2.40433035,4159.2,4158.6,5.309]
[1759269552337,2.40433035,4159.2,4158.8,0.7143]
[1759269552510,2.40433035,4159.2,4158.9,0.7143]
[1759269552723,2.40433035,4159.2,4159.0,5.308]
[1759269553146,3.19723378,4157.6,4157.5,0.002]
[1759269553459,3.19723378,4157.6,4157.5,2.275]
[1759269553861,2.4,4158.8,4157.5,2.9893]
[1759269554030,2.40501031,4158.0,4157.5,2.9893]
[1759269554235,2.40507014,4157.9,4157.5,2.275]
[1759269554541,2.67128458,4158.7,4157.5,2.275]
[1759269554542,2.40500363,4158.0,4157.6,0.7143]
[1759269554861,3.19694051,4158.2,4157.7,0.7143]
[1759269555183,3.19694051,4158.2,4157.5,2.275]
[1759269555184,0.792,4158.4,4157.5,2.275]
[1759269555334,0.8510951,4160.3,4157.8,0.73835118]
[1759269555537,2.40407197,4159.7,4157.9,3.11936024]
[1759269555756,0.05,4160.4,4158.0,3.11928773]
[1759269555757,2.40400229,4159.8,4158.0,3.11928773]
[1759269556036,0.5093109,4160.9,4158.1,5.6358]
[1759269556037,0.3164,4159.7,4158.1,5.6358]
[1759269556230,2.40450339,4158.9,4158.1,5.6358]
[1759269556585,0.3164,4159.7,4158.2,0.7143]
[1759269556766,0.792,4159.1,4158.3,0.7143]
[1759269556945,2.45384051,4160.1,4158.4,0.7143]
[1759269557266,2.45384051,4160.1,4158.1,5.393]
[1759269557267,2.40422557,4159.4,4158.5,0.7143]
[1759269557456,0.792,4159.3,4158.6,0.2428]
[1759269557653,0.792,4159.4,4158.7,0.4715]
[1759269557966,0.792,4159.4,4158.8,3.1358]
[1759269558570,2.4044772,4159.0,4158.4,2.5]
[1759269558874,0.792,4158.9,4158.1,0.6692]
[1759269559171,0.792,4158.9,4158.5,2.5]
[1759269559172,3.19665541,4158.6,4158.5,2.5]
[1759269559371,3.97268636,4158.6,4158.5,5.393]
[1759269559671,3.97268636,4158.6,4157.7,0.2257]
[1759269559672,0.792,4158.2,4157.7,0.2257]
[1759269559963,0.792,4158.2,4157.8,5.393]
[1759269560171,0.792,4158.2,4157.8,5.6187]
[1759269560564,2.4049061,4158.2,4157.8,5.6187]
[1759269561192,3.19723378,4157.6,4155.9,1.2949277]
[1759269561355,3.19723378,4157.6,4155.7,0.003]
[1759269561356,3.19723378,4157.6,4157.5,1.233]
[1759269561672,3.51363378,4157.6,4157.5,1.233]
[1759269562183,3.51363378,4157.6,4157.5,2.912]
[1759269562343,3.78911267,4157.6,4157.5,2.912]
[1759269562543,4.10551267,4157.6,4157.5,2.912]
[1759269563382,4.22551267,4157.6,4157.5,2.912]
[1759269563974,6.62551267,4157.6,4157.5,2.912]
[1759269565246,6.35911267,4157.6,4157.5,2.912]
[1759269565446,6.35911267,4157.6,4157.5,0.002]
[1759269565646,6.50551267,4157.6,4157.5,0.693]
[1759269566174,6.18911267,4157.6,4157.5,0.693]
[1759269571884,6.18911267,4157.6,4157.5,0.002]
[1759269572058,6.18911267,4157.6,4157.5,3.5672]
[1759269572059,3.78911267,4157.6,4157.5,3.5672]
[1759269572679,3.78911267,4157.6,4157.5,3.1237]
[1759269573949,3.78911267,4157.6,4157.5,3.5672]
[1759269574151,3.78911267,4157.6,4157.5,3.1237]
[1759269574349,8.30038638,4159.6,4157.5,3.1237]
[1759269574350,2.40422225,4159.4,4157.5,3.5672]
[1759269574665,0.8510951,4159.6,4157.6,0.6692]
[1759269574666,0.05,4159.5,4157.6,0.6692]
[1759269574865,2.40463935,4158.7,4157.7,0.69325175]
[1759269575070,2.40413511,4159.5,4157.7,0.69325175]
[1759269575071,2.40452035,4158.9,4157.8,0.6692]
[1759269575252,0.792,4158.7,4157.9,0.6692]
[1759269575461,2.40456017,4158.8,4158.0,0.6692]
[1759269575768,2.40454713,4158.8,4158.1,3.5642]
[1759269575967,2.40454713,4158.8,4158.2,0.6692]
[1759269576164,0.12,4158.2,4158.1,2.895]
[1759269576688,0.12,4158.2,4158.1,3.5642]
[1759269579266,2.40368294,4160.3,4158.1,3.92062]
[1759269579461,2.4039074,4159.9,4158.2,0.69324886]
[1759269579791,0.792,4159.6,4158.2,3.0981323]
[1759269579991,2.40506897,4159.7,4158.3,0.6692]
[1759269580298,0.792,4159.6,4158.4,1.30175034]
[1759269580499,3.19607932,4159.6,4158.5,0.6692]
[1759269580667,3.19607932,4159.6,4158.6,2.889]
[1759269580868,0.001,4159.7,4158.7,0.69324597]
[1759269581069,0.001,4159.7,4158.7,0.6692]
[1759269581300,0.001,4159.7,4158.6,5.29365347]
[1759269581301,0.001,4159.7,4158.8,1.28068535]
[1759269581688,0.001,4159.7,4158.9,0.2492]
[1759269581898,2.4,4159.5,4157.5,0.86168246]
[1759269582103,3.19717593,4157.7,4157.5,0.002]
[1759269583311,0.792,4157.7,4157.6,2.914]
[1759269583513,3.19717593,4157.7,4157.6,2.914]
[1759269584807,0.792,4157.7,4157.6,2.914]
[1759269587517,3.83328939,4157.7,4157.6,2.908]
[1759269589076,6.23328939,4157.7,4157.6,2.91]
[1759269589276,6.35328939,4157.7,4157.6,2.91]
[1759269590814,6.03688939,4157.7,4157.6,2.91]
[1759269591408,6.03688939,4157.7,4157.6,0.002]
[1759269591579,6.03688939,4157.7,4157.6,2.91]
[1759269591992,6.08688939,4157.7,4157.6,0.002]
[1759269592179,6.35328939,4157.7,4157.6,2.908]
[1759269592707,6.03688939,4157.7,4157.6,2.908]
[1759269595717,2.40627556,4155.8,4155.5,2.4]
[1759269595915,2.40627556,4155.8,4154.4,4.74864598]
[1759269595916,2.40685472,4154.8,4154.7,0.85968246]
[1759269596213,2.40639137,4155.6,4154.4,3.03460744]
[1759269596214,3.19902852,4154.5,4154.4,3.03460744]
[1759269596678,3.19902852,4154.5,4154.4,3.71900744]
[1759269597082,3.19902852,4154.5,4154.4,6.63500744]
[1759269597304,3.19902852,4154.5,4154.4,3.28380744]
[1759269597507,3.19902852,4154.5,4154.4,8.40160744]
[1759269598291,0.792,4154.5,4154.4,9.08600744]
[1759269598698,3.19902852,4154.5,4154.4,9.08600744]
[1759269599305,3.19902852,4154.5,4154.4,5.90060744]
[1759269600221,3.19902852,4154.5,4154.4,2.98460744]
[1759269600587,3.19902852,4154.5,4154.4,8.40360744]
[1759269600786,0.792,4154.5,4154.4,2.98460744]
[1759269601020,0.792,4154.5,4154.4,8.40460744]
[1759269601406,0.792,4154.5,4154.4,9.08900744]
[1759269601636,0.3144,4155.9,4154.4,9.08900744]
[1759269601826,2.40610238,4156.1,4154.6,2.40692677]
[1759269602131,2.4,4156.4,4154.7,6.00826708]
[1759269602331,2.40609052,4156.2,4154.8,3.09124755]
[1759269602639,2.40609052,4156.2,4154.8,2.936]
[1759269602640,0.5216,4156.1,4154.8,2.936]
[1759269602841,0.792,4155.8,4154.8,2.936]
[1759269603048,0.792,4155.8,4154.9,2.502]
[1759269603341,2.40578603,4156.7,4154.9,2.502]
[1759269603342,0.4716,4157.0,4154.9,2.7512]
[1759269603502,2.40569422,4156.9,4155.0,2.65593886]
[1759269603697,2.40549126,4157.2,4155.1,0.2492]
[1759269603914,2.92696077,4157.4,4155.6,2.40634197]
[1759269604230,0.29269608,4157.3,4155.7,3.22226333]
[1759269604431,0.001,4157.7,4155.2,2.4]
[1759269604432,0.001,4157.7,4155.8,3.6334]
[1759269604616,0.001,4157.7,4156.0,2.4]
[1759269604823,0.001,4157.7,4157.2,2.40541112]
[1759269604998,0.001,4157.7,4157.3,5.35639553]
[1759269605331,0.001,4157.7,4157.4,5.453]
[1759269605836,0.001,4157.7,4157.5,0.6844]
[1759269606002,0.12,4157.6,4157.5,0.6844]
[1759269607437,0.792,4157.4,4154.6,1.2949277]
[1759269607742,0.792,4157.0,4154.7,2.951]
[1759269607902,0.792,4156.7,4154.7,2.951]
[1759269608104,0.792,4155.0,4154.7,2.951]
[1759269608330,0.792,4154.8,4154.7,2.951]
[1759269608637,2.40599597,4156.3,4154.7,3.79376074]
[1759269608638,2.40645278,4155.5,4154.7,3.79376074]
[1759269608826,0.792,4155.4,4154.8,0.2492]
[1759269609031,2.4,4156.2,4154.8,0.2492]
[1759269609032,0.792,4155.6,4154.8,0.6844]
[1759269609203,0.792,4155.6,4154.9,0.2492]
[1759269609537,0.792,4155.4,4154.9,0.2492]
[1759269609725,0.792,4155.5,4155.0,0.6844]
[1759269609922,0.792,4155.5,4155.1,3.6814]
[1759269610107,0.792,4155.6,4155.2,0.6844]
[1759269610308,0.792,4156.6,4155.3,3.1864]
[1759269610505,3.19902852,4154.5,4154.4,2.98460744]
[1759269610731,3.19902852,4154.5,4154.4,5.98460744]
[1759269610732,0.792,4154.5,4154.4,5.98460744]
[1759269611206,3.19902852,4154.5,4154.4,5.98460744]
[1759269611619,0.792,4154.5,4154.4,5.98460744]
[1759269611940,3.19902852,4154.5,4154.4,5.98460744]
[1759269612237,3.19902852,4154.5,4154.4,2.98460744]
[1759269612405,3.75962351,4154.5,4154.4,8.49860744]
[1759269612604,3.19902852,4154.5,4154.4,8.49860744]
[1759269613250,0.792,4154.5,4154.4,8.49860744]
[1759269613547,2.40671748,4155.1,4154.4,9.18450744]
[1759269614042,2.40658488,4155.3,4154.5,0.2386]
[1759269614240,2.4,4155.9,4154.5,0.2386]
[1759269614407,0.792,4155.4,4154.5,0.2386]
[1759269614602,0.792,4155.4,4154.4,8.94590744]
[1759269614603,1.2342,4155.4,4154.4,2.98460744]
[1759269614839,3.19902852,4154.5,4154.4,2.98460744]
[1759269615047,3.19902852,4154.5,4154.4,5.99960744]
[1759269615608,3.19902852,4154.5,4154.4,8.49960744]
[1759269615811,3.44770379,4154.5,4154.4,8.49960744]
[1759269616215,3.44770379,4154.5,4154.4,2.98460744]
[1759269616216,6.33990379,4154.5,4154.4,2.98460744]
[1759269616440,6.33990379,4154.5,4154.4,5.91660744]
[1759269617223,3.88990379,4154.5,4154.4,5.91660744]
[1759269617513,4.00990379,4154.5,4154.4,5.91660744]
[1759269617855,4.00990379,4154.5,4154.4,6.00160744]
[1759269618757,3.56770379,4154.5,4154.4,6.00160744]
[1759269620016,3.31902852,4154.5,4154.4,6.00160744]
[1759269620352,3.31902852,4154.5,4154.4,8.50260744]
[1759269622049,0.4534,4156.0,4154.4,8.73540744]
[1759269622347,2.4066684,4155.2,4154.5,0.2328]
[1759269622521,2.40658427,4155.3,4154.5,1.07376673]
[1759269622723,2.40658427,4155.3,4154.6,0.7051]
[1759269622937,2.40658427,4155.3,4154.7,3.017]
[1759269623140,2.40606299,4156.2,4154.8,0.7051]
[1759269623339,0.5259463,4156.1,4154.9,0.2328]
[1759269623543,0.5259463,4156.1,4155.0,3.016]
[1759269623751,2.40639502,4155.6,4155.1,0.2328]
[1759269624029,2.40640711,4155.6,4155.2,0.7051]
[1759269624358,2.40640711,4155.6,4155.0,3.016]
[1759269624359,0.792,4155.5,4155.3,3.7211]
[1759269624532,2.40593738,4156.4,4154.5,3.24796266]
[1759269624533,2.85899794,4157.0,4155.4,3.7201]
[1759269624732,2.40614413,4156.1,4155.5,3.015]
[1759269624931,2.40616189,4156.0,4155.5,3.015]
[1759269625168,2.40611109,4156.1,4155.6,0.7051]
[1759269625339,2.40702852,4154.5,4154.4,2.98460744]
[1759269625659,3.19902852,4154.5,4154.4,6.01160744]
[1759269626231,3.19902852,4154.5,4154.4,2.98460744]
[1759269626426,3.75962657,4154.5,4154.4,8.51560744]
[1759269626629,3.75962657,4154.5,4154.4,8.51460744]
[1759269626828,0.792,4154.5,4154.4,8.51460744]
[1759269627028,0.792,4154.5,4154.4,8.74740744]
[1759269627864,0.792,4154.5,4154.4,9.21970744]
[1759269629182,3.19902852,4154.5,4154.4,2.98460744]
[1759269629362,3.19902852,4154.5,4154.4,6.01160744]
[1759269629763,3.19902852,4154.5,4154.4,2.98460744]
[1759269629963,3.19902852,4154.5,4154.4,8.51560744]
[1759269631662,3.19902852,4154.5,4154.4,2.98460744]
[1759269631868,3.19902852,4154.5,4154.4,8.51460744]
[1759269632066,3.31902852,4154.5,4154.4,8.51460744]
[1759269633454,0.912,4154.5,4154.4,2.98460744]
[1759269633678,0.912,4154.5,4154.4,9.21470744]
[1759269634259,2.52702852,4154.5,4154.4,4.61137818]
[1759269634461,2.52702852,4154.5,4154.4,9.21570744]
[1759269634663,0.12,4154.5,4154.4,9.21570744]
[1759269636500,3.19902852,4154.5,4154.4,2.98460744]
[1759269636661,3.19902852,4154.5,4154.4,6.00860744]
[1759269637065,3.19902852,4154.5,4154.4,2.98460744]
[1759269637359,3.75962545,4154.5,4154.4,8.51460744]
[1759269638791,3.75962545,4154.5,4154.4,2.98460744]
[1759269638992,3.75962545,4154.5,4154.4,8.51560744]
[1759269639227,3.75962545,4154.5,4154.0,0.003]
[1759269639399,3.19931824,4154.0,4153.9,0.002]
[1759269639696,3.49375566,4154.0,4153.9,0.002]
[1759269640472,3.49375566,4154.0,4153.9,3.035]
[1759269642209,3.19931824,4154.0,4153.9,3.035]
[1759269642417,3.19931824,4154.0,4153.9,3.2812]
[1759269643304,3.19931824,4154.0,4153.9,0.7167]
[1759269643512,3.19931824,4154.0,4153.9,6.2527]
[1759269644019,3.19931824,4154.0,4153.9,6.2537]
[1759269644516,3.19931824,4154.0,4153.9,0.2482]
[1759269644815,3.19931824,4154.0,4153.9,5.7822]
[1759269644984,3.19931824,4154.0,4153.9,6.2507]
[1759269645181,3.19931824,4154.0,4153.9,5.7812]
[1759269645385,3.19931824,4154.0,4153.9,6.2497]
[1759269645620,2.40698542,4154.6,4153.9,6.2497]
[1759269645827,2.40644928,4155.5,4154.0,0.73877318]
[1759269646031,2.40702289,4154.6,4154.1,0.7147]
[1759269646230,2.40702289,4154.6,4154.2,0.7147]
[1759269646391,2.40641127,4155.6,4154.3,1.36344144]
[1759269646587,2.40684394,4154.9,4154.4,3.03]
[1759269646788,0.4342,4156.0,4154.4,3.03]
[1759269646789,2.40662432,4155.2,4154.5,0.73877028]
[1759269647123,2.40662432,4155.2,4154.4,3.03]
[1759269647124,2.40662365,4155.2,4154.6,0.7147]
[1759269647297,2.40662365,4155.2,4154.7,3.7447]
[1759269647499,2.40654993,4155.4,4154.8,0.7147]
[1759269647800,2.40654993,4155.4,4154.9,0.73876796]
[1759269647994,2.40654993,4155.4,4155.0,0.7147]
[1759269648202,2.40605449,4156.2,4155.1,6.2457]
[1759269648203,2.40647732,4155.5,4155.1,6.2457]
[1759269648397,0.50939397,4157.1,4155.2,0.73876623]
[1759269648592,0.12,4155.3,4155.2,0.73876623]
[1759269648794,2.406134,4156.1,4155.2,3.76574285]
[1759269648992,2.40700743,4156.3,4155.3,0.7147]
[1759269649232,2.40608987,4156.2,4155.4,0.73876507]
[1759269649391,2.40608987,4156.2,4155.5,3.7437]
[1759269649589,0.001,4156.3,4155.6,0.73876391]
[1759269649590,2.40700275,4156.3,4155.6,0.73876391]
[1759269649895,2.40700275,4156.3,4155.7,1.09147639]
[1759269649896,0.001,4156.3,4155.7,1.09147639]
[1759269650097,0.001,4156.3,4155.8,0.73876275]
[1759269650406,0.001,4156.3,4155.9,3.027]
[1759269650625,0.001,4156.3,4156.0,0.02406159]
[1759269650825,0.001,4156.3,4156.0,0.73876159]
[1759269651026,0.001,4156.3,4156.0,1.39364812]
[1759269651344,0.001,4156.3,4156.1,0.7147]
[1759269651511,0.001,4156.3,4156.2,0.02406043]
[1759269651711,0.001,4156.3,4156.2,0.7147]
[1759269652407,0.001,4156.3,4156.2,8.88240441]
[1759269652614,0.001,4156.3,4156.2,18.85484665]
[1759269653209,0.001,4156.3,4156.2,17.89431665]
[1759269653435,0.001,4157.7,4156.2,22.43251765]
[1759269653725,0.001,4157.7,4157.3,2.40539983]
[1759269654007,0.001,4157.7,4157.5,2.4]
[1759269654209,0.001,4157.7,4157.6,0.02405233]
[1759269654422,0.001,4157.7,4157.6,0.73875233]
[1759269654841,0.001,4157.7,4157.6,0.7147]
[1759269655039,0.001,4157.7,4157.6,0.73875233]
[1759269655241,0.001,4157.7,4157.6,0.7147]
[1759269657338,0.001,4157.7,4157.6,3.99819048]
[1759269658545,0.001,4157.7,4157.6,3.97413815]
[1759269659347,0.001,4157.7,4157.6,6.37413815]
[1759269659853,0.001,4157.7,4157.6,9.39013815]
[1759269660053,0.001,4157.7,4157.6,3.72270437]
[1759269660251,0.001,4157.7,4155.6,1.2949277]
[1759269660252,0.792,4157.2,4155.6,2.502]
[1759269660436,0.792,4157.2,4155.1,0.2462]
[1759269660437,2.40627556,4155.8,4155.1,0.2462]
[1759269660749,4.80563881,4156.9,4154.6,0.2462]
[1759269660750,2.40651118,4155.4,4154.6,0.2462]
[1759269661049,0.4342,4155.9,4155.2,2.501]
[1759269661050,2.40644803,4155.6,4155.2,2.501]
[1759269661253,2.40627556,4155.8,4155.3,3.083]
[1759269661565,0.4342,4155.8,4155.3,3.083]
[1759269661848,2.40633346,4155.7,4155.3,3.083]
[1759269662046,2.40639151,4155.6,4155.3,3.083]
[1759269662239,2.40633406,4155.7,4155.3,3.083]
[1759269663346,0.4342,4156.3,4155.3,3.083]
[1759269663540,2.40621049,4156.0,4155.3,3.6414]
[1759269663854,2.40615836,4156.1,4155.3,3.6414]
[1759269664021,0.4342,4156.3,4155.3,3.6414]
[1759269664356,2.40599384,4156.3,4155.4,0.02406507]
[1759269664539,0.792,4156.5,4155.4,0.2462]
[1759269664745,2.4059282,4156.4,4155.4,1.1966429]
[1759269665353,2.40599707,4156.3,4155.4,1.17257783]
[1759269666123,2.40599707,4156.3,4155.5,0.02406449]
[1759269666343,2.40593182,4156.4,4155.4,1.17257783]
[1759269667249,2.40586687,4156.6,4155.5,2.43050445]
[1759269667433,2.40591403,4156.5,4155.5,0.02406449]
[1759269667952,2.40593816,4156.4,4155.5,0.02406449]
[1759269668155,2.40588149,4156.5,4155.5,1.02140536]
[1759269668356,2.4057656,4156.7,4155.6,2.65258701]
[1759269668572,0.4342,4157.2,4155.7,3.7877]
[1759269668726,2.40558683,4157.0,4155.8,2.65242318]
[1759269668930,2.40558683,4157.0,4155.9,3.29028165]
[1759269669157,0.4342,4157.2,4156.0,0.2462]
[1759269669350,2.40561506,4157.0,4156.0,5.8212]
[1759269669857,2.40565193,4156.9,4156.0,5.8212]
[1759269670050,2.40559599,4157.0,4156.0,5.8212]
[1759269670234,0.12,4156.1,4156.0,5.8212]
[1759269670557,0.12,4156.1,4156.0,6.2897]
[1759269671156,0.12,4156.1,4156.0,9.806084]
[1759269671361,0.12,4156.1,4156.0,7.39992424]
[1759269672660,0.12,4156.1,4156.0,9.806084]
[1759269672956,0.12,4156.1,4156.0,7.39992424]
[1759269673162,0.12,4156.1,4156.0,9.806084]
[1759269674153,0.12,4156.5,4156.1,2.4]
[1759269674473,0.12,4156.7,4156.5,2.40586426]
[1759269674667,0.12,4156.7,4156.6,5.71807056]
[1759269674867,0.001,4157.7,4156.7,2.40572623]
[1759269675075,0.12,4156.9,4156.8,2.42975364]
[1759269675243,0.12,4157.1,4156.9,2.40560939]
[1759269675431,0.001,4157.7,4157.2,2.40545317]
[1759269675630,0.001,4157.7,4157.3,0.02405407]
[1759269675826,0.001,4157.7,4157.4,3.055]
[1759269676048,0.001,4157.7,4157.5,0.02405291]
[1759269676248,0.001,4157.7,4157.5,0.25425291]
[1759269676249,0.12,4157.6,4157.5,0.25425291]
[1759269677377,0.12,4157.6,4157.5,1.11312655]
[1759269677556,0.12,4157.6,4157.5,3.12824455]
[1759269677756,0.12,4157.6,4157.5,3.10419164]
[1759269677963,0.12,4157.6,4157.5,3.12824455]
[1759269678663,0.001,4157.7,4157.6,2.40523378]
[1759269678863,0.001,4157.7,4157.6,5.47003378]
[1759269679163,0.001,4157.7,4157.6,31.42973232]
[1759269679564,0.001,4157.7,4157.6,34.47773232]
[1759269679767,0.001,4157.7,4157.6,33.99167232]
[1759269680138,0.001,4157.7,4157.6,36.21769802]
[1759269680372,0.001,4157.7,4157.6,34.92277032]
[1759269680671,0.001,4158.2,4158.1,2.40494456]
[1759269680869,0.001,4158.2,4158.1,38.59599064]
[1759269681174,0.001,4158.2,4158.1,39.3567412]
[1759269682357,0.001,4158.2,4158.1,40.1487412]
[1759269682875,0.4608,4160.4,4159.6,2.40407731]
[1759269683167,0.4608,4160.4,4159.6,5.44507731]
[1759269683168,0.12,4160.0,4159.6,5.44507731]
[1759269683358,0.12,4160.0,4159.6,5.44153864]
[1759269683759,0.12,4160.0,4159.6,8.90121796]
[1759269684071,0.001,4161.1,4159.6,9.25231796]
[1759269684378,0.12,4160.5,4159.6,6.64501796]
[1759269684539,0.12,4160.5,4159.6,9.68301796]
[1759269686069,0.4618,4159.7,4159.6,2.4]
[1759269686376,0.4618,4159.7,4159.6,5.433]
[1759269686870,0.001,4159.7,4159.6,5.433]
[1759269687665,0.001,4159.7,4159.6,2.4]
[1759269687862,0.001,4159.7,4159.6,5.433]
[1759269688969,0.001,4159.7,4159.6,7.83707731]
[1759269689137,0.001,4159.7,4159.6,10.33707731]
[1759269695745,0.001,4159.7,4159.6,11.63431164]
[1759269695947,0.001,4159.7,4159.6,12.41911164]
[1759269697069,0.001,4159.7,4159.6,16.97511664]
[1759269697264,0.001,4161.1,4161.0,2.40326844]
[1759269697466,0.001,4161.1,4161.0,7.81126844]
[1759269697671,0.001,4161.1,4161.0,9.30382967]
[1759269699064,0.001,4161.1,4161.0,12.63671967]
[1759269699682,0.001,4161.1,4161.0,12.36833067]
[1759269700260,0.001,4161.1,4161.0,9.73752967]
[1759269700501,0.001,4161.1,4161.0,6.72952967]
[1759269700671,0.001,4161.1,4161.0,13.03831467]
[1759269701274,0.001,4161.1,4161.0,12.44551667]
[1759269701870,0.001,4161.1,4161.0,9.73252967]
[1759269702069,0.001,4161.1,4161.0,12.64131467]
[1759269702970,0.001,4161.1,4161.0,23.36841567]
[1759269703166,0.001,4161.1,4161.0,32.65130767]
[1759269703865,0.001,4161.1,4161.0,32.79732867]
[1759269704299,0.001,4161.1,4161.0,15.39854567]
[1759269704997,0.001,4161.1,4161.0,15.84268567]
[1759269706003,0.001,4161.1,4161.0,16.14778067]
[1759269707285,0.001,4161.1,4161.0,16.26778067]
[1759269708195,0.001,4161.1,4161.0,19.12052167]
[1759269709107,0.001,4161.1,4161.0,40.71041869]
[1759269710311,0.001,4161.1,4161.0,39.85252967]
[1759269711599,0.12,4162.5,4161.5,2.40297969]
[1759269711806,0.12,4162.5,4161.5,38.25958294]
[1759269712116,0.12,4162.5,4161.5,39.07818294]
[1759269715435,0.5721,4162.5,4161.5,39.07818294]
[1759269717344,0.5721,4162.5,4161.5,39.06518294]
[1759269718166,0.12,4162.5,4161.5,24.02110694]
[1759269718342,0.4521,4162.3,4161.5,12.04760594]
[1759269718714,0.4521,4162.3,4161.5,11.80820594]
[1759269719241,0.4521,4162.3,4161.5,14.05456294]
[1759269719538,0.001,4162.1,4161.5,11.09156294]
[1759269719744,0.001,4162.1,4161.5,12.58118594]
[1759269719932,0.001,4162.1,4161.5,9.62318594]
[1759269720245,0.4531,4162.1,4161.5,19.82341994]
[1759269720416,0.4531,4162.1,4161.5,12.12409494]
[1759269721346,0.4531,4162.1,4161.5,31.52883827]
[1759269721651,0.4531,4162.1,4161.5,30.45049094]
[1759269722375,0.4531,4162.1,4161.5,38.60098294]
[1759269723884,0.001,4162.1,4162.0,2.40269101]
[1759269724041,0.4521,4162.9,4162.8,2.40222926]
[1759269724248,0.4521,4162.9,4162.8,10.27325155]
[1759269724249,0.5021,4162.9,4162.8,10.27325155]
[1759269724474,0.5021,4162.9,4162.8,10.24922926]
[1759269724678,0.05,4163.2,4163.1,2.40205616]
[1759269724878,0.001,4164.0,4163.3,2.40194076]
[1759269724879,0.4521,4163.4,4163.3,2.40194076]
[1759269725180,0.4521,4163.4,4163.3,7.77396016]
[1759269725382,0.4521,4163.4,4163.3,2.4]
[1759269725543,0.5021,4163.4,4162.8,2.498]
[1759269725875,2.90405514,4163.3,4162.9,2.947]
[1759269726080,0.5021,4163.2,4162.9,2.947]
[1759269726402,0.4521,4163.1,4162.9,3.4915]
[1759269726688,0.5021,4163.5,4163.4,2.40188307]
[1759269726872,0.5021,4163.5,4163.4,5.35088307]
[1759269729698,0.5021,4163.5,4163.4,5.34888307]
[1759269730670,0.05,4163.8,4163.7,2.40171001]
[1759269730875,0.4521,4163.8,4163.7,6.1177623]
[1759269731214,0.5021,4163.8,4163.7,0.77505229]
[1759269731372,0.5021,4163.8,4163.7,2.941]
[1759269733172,0.5021,4163.8,4163.7,2.40171001]
[1759269733492,0.5021,4163.8,4163.7,5.33971001]
[1759269733894,0.5021,4163.8,4163.7,2.938]
[1759269734297,0.5021,4163.8,4163.3,2.52]
[1759269734498,0.5245,4163.7,4163.5,2.4]
[1759269734694,0.5245,4163.6,4163.3,3.0981644]
[1759269734871,0.5245,4163.6,4163.5,2.4]
[1759269734872,0.05,4163.6,4163.5,2.4]
[1759269735089,0.17,4163.9,4163.6,2.4017641]
[1759269735289,0.05,4163.8,4163.7,2.934]
[1759269735493,0.5245,4163.8,4163.7,5.33571001]
[1759269736003,0.5245,4163.8,4163.7,2.934]
[1759269736775,0.12,4163.9,4163.7,0.53357663]
[1759269736976,0.4745,4163.8,4163.7,2.931]
[1759269737502,0.4745,4163.8,4163.7,5.33271001]
[1759269737815,0.12,4163.9,4162.8,2.498]
[1759269737975,4.80251783,4162.3,4162.1,0.002]
[1759269738173,4.80251783,4162.3,4160.5,0.002]
[1759269738174,5.59521068,4161.1,4160.5,0.002]
[1759269738598,5.59521068,4161.1,4161.0,2.967]
[1759269738805,5.59549949,4160.6,4160.5,0.002]
[1759269740022,5.59549949,4160.6,4160.5,0.35]
[1759269740716,3.19549949,4160.6,4160.5,0.35]
[1759269741009,2.40326758,4161.1,4160.5,0.35]
[1759269741212,2.40313358,4161.3,4160.5,0.35]
[1759269741415,0.792,4161.1,4160.5,0.35]
[1759269741981,0.8510951,4163.0,4160.5,0.35]
[1759269742310,2.40282049,4161.8,4160.7,2.40344172]
[1759269742702,0.792,4161.7,4160.7,2.40344172]
[1759269742916,2.40282049,4161.8,4160.7,2.40344172]
[1759269743221,2.40282049,4161.8,4160.6,0.6624]
[1759269743222,0.792,4161.6,4160.8,2.40338242]
[1759269743512,3.19496948,4161.6,4160.6,3.06585217]
[1759269743726,0.792,4161.6,4160.7,2.40342392]
[1759269744212,3.19488981,4161.7,4160.8,2.40338244]
[1759269745012,2.40248641,4162.4,4160.6,3.06586372]
[1759269745219,2.40297093,4161.6,4160.7,2.40344001]
[1759269745428,0.792,4161.6,4160.8,2.4033722]
[1759269746331,0.792,4161.9,4160.7,2.40339782]
[1759269746533,0.792,4161.6,4160.6,3.0624]
[1759269746901,0.792,4161.6,4160.8,2.40336772]
[1759269747234,0.792,4161.9,4160.6,3.0624]
[1759269747433,0.792,4161.9,4160.5,0.35]
[1759269747434,0.50701271,4163.7,4160.8,4.80338396]
[1759269747643,2.40267392,4163.8,4161.5,2.40293292]
[1759269747802,2.40241066,4162.5,4161.6,2.97902921]
[1759269748004,2.40241066,4162.5,4161.6,5.38193903]
[1759269748211,0.12,4161.7,4161.6,5.35790982]
[1759269748425,0.001,4163.8,4161.7,2.40283161]
[1759269748623,0.001,4163.8,4161.6,4.45974017]